bitfinex/quotes_SOLUSD_20240726
["timestamp","ask_amount","ask_price","bid_price","bid_amount"]
[1721976896830,17.9822,177.55,177.5,32.0674]
[1721976897328,5.6322,177.55,177.5,32.0674]
[1721976898026,12.35,177.56,177.51,5.6334]
[1721976898404,17.9818,177.57,177.52,5.6331]
[1721976898718,17.9818,177.57,177.52,17.9831]
[1721976898903,12.35,177.58,177.53,27.55836251]
[1721976899109,12.35,177.58,177.53,26.4319]
[1721976899536,17.9813,177.58,177.53,32.0646]
[1721976900026,17.9813,177.58,177.54,1.12639224]
[1721976900248,17.9813,177.58,177.53,32.0646]
[1721976900402,17.9813,177.58,177.53,19.7146]
[1721976900822,17.9813,177.58,177.53,20.84099904]
[1721976900997,17.9813,177.58,177.53,19.7146]
[1721976901207,5.6317,177.57,177.53,14.0819]
[1721976901407,17.9817,177.57,177.53,14.0819]
[1721976902333,17.9819,177.56,177.51,5.6334]
[1721976902532,12.35,177.55,177.51,5.6334]
[1721976902915,5.6319,177.56,177.51,5.6334]
[1721976902916,17.9819,177.56,177.51,5.6334]
[1721976903139,17.9819,177.56,177.52,5.6331]
[1721976904039,17.9819,177.56,177.51,5.6334]
[1721976904632,12.35,177.53,177.49,20.175]
[1721976904974,12.35,177.53,177.41,3.46001612]
[1721976904975,12.35,177.5,177.45,29.7579]
[1721976905252,12.35,177.5,177.45,42.1079]
[1721976905644,12.35,177.51,177.45,42.1079]
[1721976905953,15.3848,177.57,177.5,14.0841]
[1721976906253,12.35,177.56,177.53,5.6325]
[1721976906429,12.35,177.57,177.53,5.6325]
[1721976906747,12.35,177.55,177.52,14.0822]
[1721976906949,12.35,177.54,177.52,14.0822]
[1721976907249,17.9829,177.53,177.48,14.0854]
[1721976907548,12.35,177.51,177.48,19.7198]
[1721976907850,12.35,177.52,177.48,19.7198]
[1721976908423,12.35,177.52,177.49,5.6339]
[1721976909149,12.35,177.52,177.48,14.0854]
[1721976909348,12.35,177.52,177.5,5.6337]
[1721976909736,12.35,177.52,177.48,14.0854]
[1721976909938,12.35,177.51,177.49,5.634]
[1721976910537,12.35,177.52,177.5,5.6337]
[1721976911330,12.35,177.52,177.49,5.634]
[1721976912028,1.30423169,177.54,177.48,14.0854]
[1721976912353,12.35,177.52,177.48,14.0854]
[1721976913124,12.35,177.52,177.51,5.6334]
[1721976913828,12.35,177.53,177.51,5.6334]
[1721976914248,12.35,177.52,177.48,14.0854]
[1721976914452,12.35,177.49,177.43,12.35]
[1721976914625,12.35,177.49,177.46,5.635]
[1721976917838,12.35,177.5,177.47,5.6347]
[1721976918036,12.35,177.5,177.48,5.6344]
[1721976918243,12.35,177.51,177.48,5.6344]
[1721976920557,12.35,177.5,177.48,5.6344]
[1721976920757,12.35,177.49,177.47,5.6347]
[1721976925375,12.35,177.49,177.46,19.722]
[1721976925541,12.35,177.48,177.46,19.722]
[1721976926391,12.35,177.49,177.47,5.6347]
[1721976926666,12.35,177.5,177.47,5.6347]
[1721976927866,12.35,177.49,177.47,5.6347]
[1721976928061,5.6328,177.53,177.48,5.6344]
[1721976928269,12.35,177.51,177.48,5.6344]
[1721976929452,12.35,177.5,177.48,5.6344]
[1721976931590,12.35,177.5,177.49,5.6341]
[1721976931781,8.83261666,177.57,177.48,12.35]
[1721976931958,12.35,177.54,177.51,5.6334]
[1721976932555,5.6319,177.56,177.54,5.6324]
[1721976932556,12.35,177.56,177.54,5.6324]
[1721976932770,12.35,177.59,177.56,5.6316]
[1721976933782,12.35,177.57,177.52,14.0829]
[1721976933969,12.35,177.57,177.52,32.0657]
[1721976934165,12.35,177.58,177.53,5.6328]
[1721976934485,12.35,177.56,177.53,5.6328]
[1721976936396,12.35,177.56,177.54,5.6324]
[1721976936764,12.35,177.58,177.54,5.6324]
[1721976937180,12.35,177.58,177.55,5.6322]
[1721976937680,12.35,177.6,177.56,5.6318]
[1721976938081,12.35,177.61,177.58,5.6312]
[1721976939290,1.30423169,177.65,177.58,5.6312]
[1721976939497,12.35,177.62,177.58,5.6312]
[1721976939671,12.35,177.61,177.58,5.6312]
[1721976940187,12.35,177.61,177.59,5.6309]
[1721976940372,12.35,177.62,177.59,5.6309]
[1721976941570,12.35,177.61,177.58,14.0777]
[1721976941775,12.35,177.6,177.58,14.0777]
[1721976942086,12.35,177.6,177.57,5.6315]
[1721976942795,12.35,177.59,177.57,5.6315]
[1721976947196,12.35,177.58,177.55,5.6319]
[1721976948488,12.35,177.57,177.55,5.6319]
[1721976948991,12.35,177.58,177.56,5.6318]
[1721976951897,12.35,177.59,177.56,5.6318]
[1721976955285,1.30423169,177.64,177.57,5.6314]
[1721976955493,12.35,177.6,177.57,5.6314]
[1721976956710,12.35,177.6,177.56,5.6318]
[1721976957909,12.35,177.59,177.56,5.6318]
[1721976958306,12.35,177.59,177.55,5.6321]
[1721976958812,5.6306,177.6,177.55,5.6321]
[1721976958813,12.35,177.58,177.55,5.6321]
[1721976963114,1.30423169,177.64,177.56,12.35]
[1721976963416,12.35,177.65,177.62,14.0745]
[1721976963797,12.35,177.64,177.62,14.0745]
[1721976963991,12.35,177.64,177.6,5.6305]
[1721976964197,12.35,177.63,177.59,19.7081]
[1721976964409,12.35,177.63,177.57,18.9056]
[1721976964410,12.35,177.61,177.57,6.5556]
[1721976964823,12.35,177.6,177.56,14.0796]
[1721976965001,12.35,177.58,177.56,14.0796]
[1721976965313,12.35,177.59,177.56,14.0796]
[1721976965518,12.35,177.59,177.56,19.7114]
[1721976965819,12.35,177.59,177.57,5.6312]
[1721976966020,1.30423169,177.65,177.56,14.0796]
[1721976966021,12.35,177.61,177.56,14.0796]
[1721976966313,12.35,177.63,177.6,5.6306]
[1721976966511,12.35,177.63,177.59,5.6308]
[1721976966709,12.35,177.61,177.58,14.0775]
[1721976968705,12.35,177.61,177.58,19.7087]
[1721976969115,12.35,177.6,177.54,14.0808]
[1721976969311,12.35,177.59,177.54,14.0808]
[1721976970005,12.35,177.59,177.56,5.6317]
[1721976970200,12.35,177.59,177.55,5.6321]
[1721976970911,1.30423169,177.65,177.54,14.0808]
[1721976971106,12.35,177.55,177.51,14.0836]
[1721976971700,12.35,177.54,177.51,14.0836]
[1721976971926,12.35,177.54,177.51,19.717]
[1721976973318,12.35,177.53,177.51,14.0836]
[1721976974601,12.35,177.53,177.51,19.717]
[1721976975411,12.35,177.53,177.49,6.1878]
[1721976976722,12.35,177.53,177.49,11.8216]
[1721976979431,12.35,177.52,177.5,5.6337]
[1721976979628,12.35,177.53,177.5,5.6337]
[1721976981543,12.35,177.53,177.49,6.1878]
[1721976981929,12.35,177.53,177.49,11.8218]
[1721976987545,17.9828,177.53,177.48,19.7204]
[1721976987848,12.35,177.52,177.48,19.7204]
[1721976988051,12.35,177.51,177.48,19.7204]
[1721976988424,4.69358671,177.49,177.48,19.7204]
[1721976998462,4.69358671,177.49,177.48,14.086]
[1721976999859,4.69358671,177.49,177.48,32.0704]
[1721977006970,12.35,177.55,177.51,5.6334]
[1721977007665,12.35,177.57,177.53,5.6327]
[1721977008469,17.9816,177.57,177.52,5.6331]
[1721977008772,12.35,177.56,177.52,5.6331]
[1721977008957,17.9822,177.55,177.51,19.7169]
[1721977009273,12.35,177.54,177.51,14.0835]
[1721977009451,12.35,177.55,177.51,19.7168]
[1721977012867,5.6319,177.56,177.52,5.6331]
[1721977013069,12.35,177.55,177.52,5.6331]
[1721977013266,12.35,177.55,177.51,14.0835]
[1721977013773,17.9829,177.53,177.48,5.6343]
[1721977013959,12.35,177.51,177.48,5.6343]
[1721977014566,12.35,177.52,177.48,5.6343]
[1721977016064,45.0,177.54,177.45,22.7158]
[1721977016065,12.35,177.49,177.45,11.788]
[1721977016263,5.634,177.5,177.45,5.6351]
[1721977016460,13.65423169,177.49,177.45,5.6351]
[1721977016658,13.65423169,177.49,177.46,5.6349]
[1721977016659,12.35,177.49,177.46,5.6349]
[1721977017378,12.35,177.5,177.47,5.6346]
[1721977017682,12.35,177.49,177.46,5.635]
[1721977018265,12.35,177.5,177.47,5.6347]
[1721977019277,12.35,177.5,177.46,5.635]
[1721977019582,12.35,177.49,177.46,5.635]
[1721977023500,12.35,177.5,177.46,5.635]
[1721977025610,5.6332,177.52,177.47,5.6347]
[1721977025903,17.9832,177.52,177.47,5.6347]
[1721977026313,45.0,177.54,177.48,5.6341]
[1721977026627,12.35,177.51,177.48,5.6341]
[1721977026912,45.0,177.54,177.47,5.6347]
[1721977027117,50.6328,177.54,177.48,6.76078717]
[1721977027291,12.35,177.53,177.48,6.76078717]
[1721977027485,12.35,177.53,177.48,17.9841]
[1721977027912,5.6329,177.53,177.48,17.9841]
[1721977029009,5.6329,177.53,177.49,5.634]
[1721977031819,5.6329,177.53,177.48,17.9843]
[1721977034914,17.9829,177.53,177.48,5.6343]
[1721977035884,12.35,177.52,177.48,5.6343]
[1721977036905,12.35,177.5,177.46,20.6231]
[1721977037311,12.35,177.51,177.46,20.6231]
[1721977037526,17.9832,177.52,177.47,5.6344]
[1721977037699,17.9832,177.52,177.48,5.6344]
[1721977038220,12.35,177.52,177.48,5.6344]
[1721977038714,12.35,177.52,177.48,4.6344]
[1721977039022,12.35,177.51,177.48,4.6344]
[1721977040018,12.35,177.5,177.48,4.6344]
[1721977040919,12.35,177.5,177.47,5.6346]
[1721977041214,12.35,177.5,177.48,5.6344]
[1721977041815,12.35,177.51,177.48,5.6344]
[1721977042799,12.35,177.5,177.48,5.6344]
[1721977044409,12.35,177.51,177.48,5.6344]
[1721977046322,12.35,177.51,177.46,20.6231]
[1721977046498,12.35,177.51,177.49,5.634]
[1721977047227,12.35,177.51,177.48,5.6343]
[1721977051732,5.6324,177.55,177.5,5.6338]
[1721977051920,5.6325,177.54,177.5,5.6338]
[1721977052127,12.35,177.53,177.5,5.6338]
[1721977052327,12.35,177.52,177.5,5.6338]
[1721977053925,12.35,177.52,177.49,19.7191]
[1721977054415,12.35,177.52,177.49,14.085]
[1721977054823,12.35,177.51,177.49,14.085]
[1721977055917,12.35,177.52,177.49,14.085]
[1721977056940,12.35,177.51,177.49,14.085]
[1721977058839,12.35,177.51,177.49,19.719]
[1721977059324,5.6324,177.55,177.49,19.719]
[1721977059535,12.35,177.52,177.49,19.719]
[1721977059915,12.35,177.53,177.49,19.719]
[1721977061036,12.35,177.52,177.49,19.719]
[1721977061339,17.9832,177.52,177.48,5.6343]
[1721977061852,7.15781464,177.56,177.51,5.6332]
[1721977062142,7.15781464,177.56,177.46,6.5361]
[1721977062143,25.6322,177.55,177.49,26.4352]
[1721977062436,37.9822,177.55,177.5,1.12656723]
[1721977062620,17.9825,177.54,177.49,26.4352]
[1721977062822,12.35,177.52,177.47,21.9283]
[1721977063130,12.35,177.51,177.47,21.9283]
[1721977063827,12.35,177.51,177.48,5.6343]
[1721977065448,12.35,177.52,177.48,5.6343]
[1721977065938,12.35,177.52,177.47,16.2939]
[1721977068053,12.35,177.52,177.49,5.634]
[1721977068464,12.35,177.51,177.48,5.6341]
[1721977068974,12.35,177.52,177.49,5.6341]
[1721977069749,5.6325,177.54,177.49,5.6341]
[1721977069963,12.35,177.53,177.49,5.6341]
[1721977071569,25.6322,177.55,177.5,5.6337]
[1721977071862,12.35,177.53,177.5,5.6337]
[1721977074637,12.35,177.53,177.47,42.7301]
[1721977074947,3.64415123,177.6,177.5,26.4342]
[1721977075145,5.631,177.59,177.52,12.35]
[1721977075365,12.35,177.59,177.53,26.4314]
[1721977075567,5.6303,177.61,177.56,5.6316]
[1721977075770,12.35,177.59,177.56,5.6316]
[1721977075970,17.9809,177.59,177.55,5.6322]
[1721977076153,17.9809,177.59,177.54,5.6325]
[1721977076769,12.35,177.57,177.53,14.0814]
[1721977077071,17.9815,177.57,177.53,14.0814]
[1721977077252,12.35,177.57,177.53,19.7141]
[1721977078368,12.35,177.55,177.52,5.6331]
[1721977078578,12.35,177.55,177.51,5.6334]
[1721977079078,12.35,177.55,177.5,26.4343]
[1721977079079,12.35,177.55,177.52,5.633]
[1721977079953,12.35,177.54,177.51,5.6334]
[1721977080155,12.35,177.54,177.5,19.718]
[1721977080775,12.35,177.54,177.5,14.0843]
[1721977080776,12.35,177.51,177.5,14.0843]
[1721977083076,12.35,177.52,177.5,14.0843]
[1721977083462,12.35,177.52,177.5,19.718]
[1721977085559,12.35,177.52,177.5,14.0843]
[1721977087777,12.35,177.52,177.47,16.2939]
[1721977087778,12.35,177.51,177.47,5.6345]
[1721977087956,12.35,177.49,177.47,5.6345]
[1721977088361,6.77104609,177.48,177.47,5.6345]
[1721977088963,6.77104609,177.49,177.48,5.6344]
[1721977089388,20.42527778,177.49,177.45,2.3590275]
[1721977089593,12.35,177.46,177.42,14.09]
[1721977089881,19.12104609,177.45,177.42,14.09]
[1721977090097,12.35,177.45,177.42,14.09]
[1721977090384,12.35,177.46,177.45,5.6353]
[1721977090564,19.12254903,177.46,177.45,5.6353]
[1721977094482,6.77254903,177.46,177.45,5.6353]
[1721977094919,6.77235112,177.49,177.48,5.6344]
[1721977095082,64.12235112,177.49,177.48,5.6344]
[1721977096410,51.77235112,177.49,177.48,5.6344]
[1721977096787,64.12235112,177.49,177.48,5.6344]
[1721977097601,64.12235112,177.49,177.47,19.7214]
[1721977097783,19.12235112,177.48,177.47,19.7214]
[1721977098481,6.77235112,177.48,177.47,19.7214]
[1721977100415,12.35,177.5,177.49,5.6341]
[1721977100595,64.12185986,177.5,177.49,5.6341]
[1721977100909,51.77185986,177.5,177.49,5.6341]
[1721977102303,64.12185986,177.5,177.49,5.6341]
[1721977108992,64.12185986,177.5,177.47,19.7212]
[1721977109192,64.12185986,177.49,177.47,19.7212]
[1721977109397,6.77185986,177.48,177.47,19.7212]
[1721977110401,51.77185986,177.48,177.47,19.7212]
[1721977110603,6.77185986,177.48,177.47,19.7212]
[1721977111608,12.35,177.5,177.49,5.6338]
[1721977111802,51.77203322,177.5,177.49,5.6338]
[1721977112314,19.12203322,177.5,177.49,5.6338]
[1721977115402,6.77203322,177.5,177.49,5.6338]
[1721977115710,6.77203322,177.5,177.49,14.0845]
[1721977115911,6.77133944,177.52,177.51,5.6332]
[1721977116217,6.77133889,177.52,177.51,5.6332]
[1721977117414,19.12133889,177.52,177.49,19.7183]
[1721977117611,12.35,177.5,177.49,19.7183]
[1721977117807,19.12133889,177.5,177.49,19.7183]
[1721977119225,64.12133889,177.5,177.49,19.7183]
[1721977122400,64.12133889,177.5,177.47,5.6344]
[1721977122709,12.35,177.48,177.47,5.6344]
[1721977122902,64.12133889,177.48,177.47,5.6344]
[1721977123118,6.77133889,177.48,177.47,5.6344]
[1721977123418,12.35,177.56,177.53,14.0813]
[1721977123631,12.35,177.59,177.56,14.0797]
[1721977123799,6.76962492,177.58,177.57,5.6315]
[1721977123998,2.30272209,177.66,177.6,14.0761]
[1721977124205,12.35,177.62,177.61,5.63]
[1721977124430,19.11849113,177.62,177.61,5.63]
[1721977124799,19.11849113,177.62,177.6,19.7067]
[1721977125008,6.76849113,177.61,177.6,19.7067]
[1721977125500,6.767707,177.63,177.6,14.0761]
[1721977125810,64.117707,177.62,177.61,5.6303]
[1721977126312,64.117707,177.62,177.6,14.0761]
[1721977126509,19.117707,177.61,177.6,14.0761]
[1721977126823,19.117707,177.61,177.58,5.6312]
[1721977126824,64.117707,177.61,177.58,5.6312]
[1721977127008,19.117707,177.6,177.58,5.6312]
[1721977127211,6.767707,177.59,177.58,5.6312]
[1721977127895,19.117707,177.59,177.57,5.6315]
[1721977128219,19.117707,177.58,177.56,14.079]
[1721977128421,20.42193869,177.57,177.56,14.079]
[1721977128723,19.117707,177.57,177.56,14.079]
[1721977129116,19.117707,177.57,177.56,19.7108]
[1721977130528,64.117707,177.57,177.56,19.7108]
[1721977130706,51.767707,177.57,177.56,19.7108]
[1721977132108,45.0,177.57,177.56,19.7108]
[1721977132513,57.35,177.57,177.56,19.7108]
[1721977133328,64.11918616,177.57,177.56,19.7108]
[1721977133507,51.76918616,177.57,177.56,19.7108]
[1721977135627,45.0,177.57,177.56,19.7108]
[1721977137726,45.0,177.57,177.56,14.079]
[1721977139711,57.35,177.57,177.54,5.6324]
[1721977140034,57.35,177.56,177.54,5.6324]
[1721977143425,57.35,177.56,177.55,5.6322]
[1721977146938,64.1195692,177.56,177.55,5.6322]
[1721977153436,64.1195692,177.56,177.53,19.7149]
[1721977153610,57.35,177.56,177.53,19.7149]
[1721977154534,6.7695572,177.55,177.53,19.7149]
[1721977156123,12.35,177.54,177.49,14.0845]
[1721977156321,12.35,177.51,177.49,19.7186]
[1721977156834,12.35,177.51,177.5,5.6338]
[1721977157034,19.12125181,177.51,177.5,5.6338]
[1721977157347,19.12125181,177.51,177.49,14.0845]
[1721977157546,12.35,177.51,177.49,14.0845]
[1721977159545,6.77125694,177.5,177.49,19.7185]
[1721977159734,6.77125694,177.51,177.49,19.7185]
[1721977160143,12.35,177.53,177.49,19.7185]
[1721977160347,51.77103356,177.52,177.49,19.7185]
[1721977160524,6.77103356,177.51,177.49,19.7185]
[1721977163048,6.77103356,177.51,177.49,14.0845]
[1721977167845,6.77103356,177.51,177.48,5.6343]
[1721977167846,45.0,177.5,177.47,5.6346]
[1721977169443,17.9828,177.53,177.48,5.6343]
[1721977169749,51.77122759,177.52,177.48,5.6343]
[1721977169955,6.77122759,177.51,177.48,5.6343]
[1721977170326,19.12122759,177.51,177.48,5.6343]
[1721977170534,6.77122759,177.5,177.48,5.6343]
[1721977172741,6.77122759,177.5,177.46,14.0875]
[1721977173038,6.77122759,177.5,177.47,5.6347]
[1721977173231,6.77122759,177.5,177.48,5.6343]
[1721977173858,6.77122759,177.49,177.48,5.6343]
[1721977174062,6.77122759,177.51,177.48,5.6343]
[1721977174356,6.77122759,177.5,177.48,5.6343]
[1721977174566,6.77122759,177.51,177.48,5.6343]
[1721977175559,6.02650062,177.51,177.48,5.6343]
[1721977177754,18.37650062,177.51,177.48,5.6343]
[1721977177960,12.35,177.51,177.48,5.6343]
[1721977178256,12.35,177.49,177.45,6.417]
[1721977178563,12.35,177.49,177.45,12.0523]
[1721977178763,12.35,177.5,177.45,12.0523]
[1721977178945,17.9839,177.5,177.45,12.0523]
[1721977179955,45.0,177.49,177.45,12.0523]
[1721977182737,45.0,177.49,177.45,5.6353]
[1721977182942,57.35,177.49,177.45,5.6353]
[1721977183343,45.0,177.49,177.45,5.6353]
[1721977183545,57.35,177.49,177.45,5.6353]
[1721977185560,6.77223026,177.48,177.45,5.6353]
[1721977185940,12.35,177.46,177.43,14.0899]
[1721977186149,6.77223026,177.45,177.43,14.0899]
[1721977187059,6.77223026,177.45,177.43,19.7259]
[1721977187557,6.77223026,177.45,177.41,18.9131]
[1721977188360,6.77223026,177.45,177.41,6.5631]
[1721977188536,45.0,177.44,177.41,6.5631]
[1721977188940,17.985,177.46,177.41,6.5631]
[1721977188941,45.0,177.45,177.41,18.9131]
[1721977189140,12.35,177.46,177.42,5.636]
[1721977189439,6.77338268,177.45,177.42,5.636]
[1721977191950,20.42761437,177.45,177.41,6.5631]
[1721977192175,45.0,177.44,177.41,5.6366]
[1721977192544,45.0,177.44,177.42,5.6362]
[1721977194345,45.0,177.44,177.4,43.0007]
[1721977194965,45.0,177.44,177.42,5.636]
[1721977195842,27.4946,177.43,177.4,19.729]
[1721977196063,27.4946,177.43,177.35,14.0956]
[1721977196064,12.35,177.41,177.35,14.0956]
[1721977196256,45.0,177.44,177.38,27.2479355]
[1721977196461,45.0,177.44,177.41,5.6366]
[1721977196662,12.35,177.46,177.41,5.6366]
[1721977196859,51.7739,177.45,177.41,17.9866]
[1721977197069,6.7739,177.44,177.41,17.9866]
[1721977197274,45.0,177.45,177.41,17.9866]
[1721977198182,6.77371264,177.44,177.41,17.9866]
[1721977199382,11.48454584,177.5,177.43,12.35]
[1721977199584,19.12327102,177.49,177.45,5.6353]
[1721977199784,11.48454584,177.5,177.47,5.6347]
[1721977199785,6.77327102,177.48,177.47,5.6347]
[1721977199955,6.77327102,177.48,177.46,5.635]
[1721977200154,6.77327102,177.49,177.46,5.635]
[1721977201157,6.77327102,177.49,177.45,17.9853]
[1721977202474,12.40737102,177.49,177.45,12.35]
[1721977202788,6.77208344,177.48,177.45,12.35]
[1721977203075,5.6341,177.49,177.45,12.35]
[1721977203288,6.77208409,177.48,177.45,12.35]
[1721977203868,6.77208409,177.48,177.44,32.0748]
[1721977204068,12.40648409,177.48,177.44,26.4392]
[1721977204270,12.35,177.49,177.44,26.4392]
[1721977204470,6.77208474,177.48,177.44,26.4392]
[1721977205068,6.77208474,177.48,177.44,32.0748]
[1721977212594,6.77208474,177.48,177.44,19.7248]
[1721977214368,24.75658474,177.48,177.44,14.0892]
[1721977214587,6.77208474,177.47,177.44,14.0892]
[1721977214806,19.12208474,177.47,177.44,14.0892]
[1721977214995,12.35,177.47,177.44,14.0892]
[1721977215305,6.77235996,177.46,177.44,19.7248]
[1721977215777,6.77235996,177.47,177.44,19.7248]
[1721977215980,12.35,177.48,177.44,19.7248]
[1721977216189,6.77233005,177.47,177.44,19.7248]
[1721977219017,12.35,177.48,177.44,19.7248]
[1721977219186,6.77203811,177.47,177.44,19.7248]
[1721977219794,6.77203811,177.47,177.42,22.8745]
[1721977219795,45.0,177.46,177.42,22.8745]
[1721977220003,6.77277579,177.45,177.42,28.5105]
[1721977220601,6.77277579,177.45,177.43,26.4393]
[1721977220781,12.35,177.49,177.45,5.6353]
[1721977220982,6.77240987,177.48,177.44,5.6356]
[1721977221201,19.12240987,177.48,177.44,5.6356]
[1721977221504,6.77240987,177.47,177.44,5.6356]
[1721977221705,6.77240987,177.47,177.45,5.6353]
[1721977222007,6.77240987,177.46,177.45,5.6353]
[1721977222494,6.77240987,177.48,177.45,5.6353]
[1721977222813,6.77240987,177.47,177.45,5.6353]
[1721977223121,6.77240987,177.46,177.45,5.6353]
[1721977223609,6.77240987,177.48,177.45,5.6353]
[1721977224189,6.77240987,177.48,177.44,5.6356]
[1721977224892,6.77240987,177.48,177.45,5.6353]
[1721977225208,6.77240987,177.48,177.46,5.6349]
[1721977225393,6.77240987,177.49,177.46,5.6349]
[1721977225598,6.77240987,177.48,177.46,5.6349]
[1721977225913,6.77240987,177.47,177.46,5.6349]
[1721977226093,6.77240987,177.49,177.46,5.6349]
[1721977226300,6.77240987,177.49,177.45,5.6353]
[1721977227392,6.77240987,177.49,177.46,5.635]
[1721977229605,6.77240987,177.49,177.48,5.6344]
[1721977229991,6.77240987,177.52,177.48,5.6344]
[1721977230311,12.40550987,177.52,177.48,5.6344]
[1721977230507,6.77240987,177.51,177.48,5.6344]
[1721977230815,6.77240987,177.51,177.47,19.11153661]
[1721977231193,6.77240987,177.51,177.47,17.9847]
[1721977233918,19.12240987,177.51,177.47,5.6347]
[1721977234120,6.77240987,177.5,177.47,5.6347]
[1721977234509,17.9842,177.49,177.44,5.6355]
[1721977234819,19.12240987,177.48,177.44,5.6355]
[1721977235004,6.77240987,177.47,177.44,5.6355]
[1721977235320,12.35,177.46,177.43,14.0898]
[1721977235699,19.12237547,177.45,177.4,32.0788]
[1721977235901,24.75797547,177.45,177.4,19.7288]
[1721977236126,12.35,177.41,177.38,0.8039355]
[1721977236301,12.35,177.42,177.39,5.6372]
[1721977236625,6.7740389,177.41,177.38,6.4414355]
[1721977237800,6.7740389,177.41,177.39,5.6372]
[1721977238543,6.7740389,177.41,177.4,5.6369]
[1721977239120,12.35,177.43,177.4,5.6369]
[1721977239121,6.7740389,177.42,177.4,5.6369]
[1721977239324,12.35,177.44,177.42,5.6363]
[1721977239507,49.4,177.48,177.42,5.6363]
[1721977239508,6.77380183,177.43,177.42,19.7268]
[1721977239713,12.35,177.46,177.43,5.6359]
[1721977240025,6.77310499,177.45,177.43,5.6359]
[1721977240226,19.12310499,177.45,177.43,5.6359]
[1721977240427,6.77310499,177.44,177.43,5.6359]
[1721977240623,6.77310499,177.44,177.42,14.0905]
[1721977240936,19.12310499,177.44,177.42,14.0905]
[1721977241131,12.35,177.45,177.42,19.7268]
[1721977241431,6.77315558,177.44,177.43,5.636]
[1721977241734,12.35,177.48,177.44,5.6357]
[1721977241942,6.7727215,177.47,177.44,5.6357]
[1721977242231,6.7727215,177.47,177.43,12.35]
[1721977242232,19.1227215,177.47,177.43,5.6359]
[1721977242406,6.7727215,177.46,177.43,5.6359]
[1721977242843,6.7727215,177.46,177.44,5.6357]
[1721977243620,12.35,177.45,177.42,19.7265]
[1721977245431,12.35,177.44,177.42,19.7265]
[1721977245932,12.35,177.43,177.39,14.093]
[1721977246129,12.35,177.42,177.39,14.093]
[1721977246522,12.35,177.41,177.39,14.093]
[1721977247115,12.35,177.41,177.39,19.73]
[1721977249732,12.35,177.41,177.39,14.093]
[1721977250136,12.35,177.41,177.39,19.7302]
[1721977250447,12.35,177.42,177.39,19.7302]
[1721977250750,6.7740044,177.41,177.39,19.7302]
[1721977251240,12.35,177.42,177.39,19.7302]
[1721977254664,12.35,177.43,177.39,14.093]
[1721977254866,6.77400377,177.42,177.39,26.443]
[1721977255156,12.35,177.46,177.41,26.4409]
[1721977255359,6.77315985,177.45,177.41,26.4409]
[1721977255855,6.77315985,177.45,177.41,14.0909]
[1721977256030,6.77315985,177.45,177.43,5.6359]
[1721977256559,6.77315985,177.45,177.44,5.6357]
[1721977256748,6.77315985,177.45,177.44,33.20204484]
[1721977257055,12.35,177.49,177.45,5.6351]
[1721977257353,6.77220495,177.48,177.45,5.6351]
[1721977257536,19.12220495,177.48,177.45,5.6351]
[1721977257732,6.77220495,177.47,177.45,5.6351]
[1721977258564,6.77220495,177.47,177.46,5.635]
[1721977259128,6.77220495,177.48,177.46,5.635]